Cogmind - Beta 14 @@@ ROGUE MODE // 2024.10.22 @ 05:40:37 Player: XDRM Result: Destroyed by as-04669 with Assembled Heavy Rifle Performance ------------- Evolutions (1) 500 Regions Visited (4) 800 Robots Destroyed (27) 135 Value Destroyed (545) 545 Prototype IDs (23) 460 Alien Tech Used (0) 0 Bonus (327) 327 TOTAL SCORE: 2767 Bonus ------- Follower Combat Kills 27 Aligned with FarCom 300 Cogmind --------- Core Integrity 0/400 Matter 290/300 Energy 265/265 System Corruption 15% Temperature Cool (0) Movement Walking (120) Location -9/Exiles Parts ------- > --- POWER (1) -------- Improved Ion Engine > --- PROPULSION (4) --- Aluminum Leg Aluminum Leg (fused) Aluminum Leg Aluminum Leg > --- UTILITY (2) ------ Targeting Computer > --- WEAPON (2) ------- (None) > --- INVENTORY (5) ---- Targeting Computer Targeting Computer AWS/Autocannon Peak State ------------ > --- POWER ------------ Improved Ion Engine > --- PROPULSION ------- Aluminum Leg Aluminum Leg Aluminum Leg Aluminum Leg > --- UTILITY ---------- Targeting Computer Targeting Computer > --- WEAPON ----------- Small Laser > --- INVENTORY -------- Targeting Computer Targeting Computer AWS/Autocannon [Rating: 12] Favorites ----------- Power Improved Ion Engine Engine Improved Ion Engine Propulsion Aluminum Leg Leg Aluminum Leg Wheel Wheel Utility Targeting Computer Device Seismic Detector Storage Small Storage Unit Processor Targeting Computer Weapon Small Laser Energy Gun Small Laser Ballistic Gun Assault Rifle Build | -11 -10 -9 -9 -9 ------- Run | Yrd Mat Mat Min Exi Slots Evolved 2 | . . 2 . . Power . | . . . . . Propulsion 2 | . . 2 . . Utility . | . . . . . Weapon . | . . . . . Parts Attached 38 | 6 5 25 . 2 Power 3 | 1 . 2 . . Engine 3 | 1 . 2 . . Core . | . . . . . Reactor . | . . . . . Propulsion 20 | 2 4 12 . 2 Treads . | . . . . . Leg 9 | . 2 5 . 2 Wheel 11 | 2 2 7 . . Hover . | . . . . . Flight . | . . . . . Utility 6 | 2 . 4 . . Device 2 | 1 . 1 . . Storage 1 | 1 . . . . Processor 3 | . . 3 . . Hackware . | . . . . . Protection . | . . . . . Artifact . | . . . . . Weapon 9 | 1 1 7 . . Energy Gun 6 | . 1 5 . . Energy Cannon . | . . . . . Ballistic Gun 3 | 1 . 2 . . Ballistic Cannon . | . . . . . Launcher . | . . . . . Special Weapon . | . . . . . Impact Weapon . | . . . . . Slashing Weapon . | . . . . . Piercing Weapon . | . . . . . Special Melee Weapon . | . . . . . Unidentified Prototypes . | . . . . . Parts Lost 20 | . . 17 . 3 Power 1 | . . 1 . . Propulsion 9 | . . 8 . 1 Utility 3 | . . 2 . 1 Weapon 7 | . . 6 . 1 Highest Loss Streak 9 | . . 9 . 3 To Critical Strikes 1 | . . . . 1 Average Slot Usage (%) 83 | . 95 73 88 86 Engine 10 | . 14 9 11 11 Leg 24 | . 9 14 44 44 Wheel 10 | . 18 16 . . Device 3 | . 14 . . . Storage 4 | . 14 2 . . Processor 14 | . . 16 22 21 Energy Gun 9 | . 10 9 11 10 Ballistic Gun 4 | . 14 3 . . Peak Build Rating 12 | 6 7 10 9 12 Average Rating 8 | 5 6 7 9 10 On Entrance 6 | . 6 7 9 9 Naked Turns . | . . . . . Heaviest Build 14 | 13 14 14 8 8 Greatest Support 40 | 26 26 40 40 40 Greatest Overweight (x) 3 | . . 3 . . Average Overweight (x) . | . . . . . Largest Inventory Capacity 8 | 8 8 8 5 5 Average Capacity 6 | 7 8 5 5 5 Most Carried 8 | 6 8 7 5 5 Average Carried 5 | 3 6 5 5 4 Final Capacity 8 | 8 8 5 5 5 Final Carried 8 | 6 8 5 5 5 Class Distribution -------------------- 56% | Scavenger-Mutant 43% | Mutant Dominant Class ---------------- Mutant | -10/Materials Scavenger-Mutant | -9/Materials Scavenger-Mutant | -9/Mines Scavenger-Mutant | -9/Exiles Resources | -11 -10 -9 -9 -9 ----------- Run | Yrd Mat Mat Min Exi Matter Collected 772 | 389 51 288 . 44 Remotely . | . . . . . Salvage Created 865 | 197 125 543 . . Parts 50 | 14 11 25 . . Haulers Intercepted . | . . . . . Recyclers Shooed 3 | 1 . 2 . . Parts Field Recycled . | . . . . . Retrieved Matter . | . . . . . Parts Self-Destructed . | . . . . . Prevented . | . . . . . Kills | -11 -10 -9 -9 -9 ------- Run | Yrd Mat Mat Min Exi Combat Hostiles Destroyed 18 | . 5 13 . . Guns 17 | . 5 12 . . Classes Destroyed 6 | 3 2 1 . . Worker 2 | 2 . . . . Tunneler 5 | 5 . . . . Recycler 2 | 1 . 1 . . Swarmer 6 | . 3 3 . . Grunt 11 | . 2 9 . . Brawler 1 | . . 1 . . Best Kill Streak 4 | 3 2 4 . . Combat Bots Only 4 | . 2 4 . . Max Kills in Single Turn 2 | 1 2 1 . . Gunslinging 1 | . 1 . . . Exploded . | . . . . . Melee . | . . . . . Uniques/NPCs Destroyed . | . . . . . Combat | -11 -10 -9 -9 -9 -------- Run | Yrd Mat Mat Min Exi Hostile Shots Fired 263 | . 34 211 . 18 Missed 85 | . 9 70 . 6 Damage Taken 1851 | . 251 1418 . 182 Core 445 | . 45 353 . 47 Absorbed by Shields . | . . . . . Core Remaining (%) 91 | 100 82 . . . Volleys Fired 139 | 43 16 80 . . Largest 2 | 1 2 2 . . Hottest 80 | 20 60 80 . . Shots Fired 175 | 43 32 99 . 1 Gun 175 | 43 32 99 . 1 Cannon . | . . . . . Launcher . | . . . . . Special . | . . . . . Kinetic 101 | 43 16 42 . . Thermal 50 | . 16 33 . 1 Explosive . | . . . . . Electromagnetic 24 | . . 24 . . Robot Hit Streak 9 | 8 4 9 . . Robot Miss Streak 9 | 3 9 3 . 2 Penetration Max . | . . . . . Secondary Targets 1 | . 1 . . . Max Gunslinging Chain 1 | . 1 . . . Shots Hit Robots 120 | 31 15 74 . . Core Hits 40 | 9 8 23 . . Critical Kills 1 | . . 1 . . Critical Parts Destroyed . | . . . . . Critical Strikes 2 | . . 2 . . Destroy 1 | . . 1 . . Corrupt 1 | . . 1 . . Melee Attacks . | . . . . . Impact . | . . . . . Slashing . | . . . . . Piercing . | . . . . . Sneak Attacks . | . . . . . Combat Hostiles . | . . . . . Follow-up Attacks . | . . . . . Damage Inflicted 1471 | 399 187 885 . . Guns 1421 | 399 187 835 . . Cannons . | . . . . . Explosions 45 | . . 45 . . Melee . | . . . . . Ramming 5 | . . 5 . . Kinetic 806 | 399 123 284 . . Thermal 402 | . 64 338 . . Explosive . | . . . . . Electromagnetic 258 | . . 258 . . Impact . | . . . . . Slashing . | . . . . . Piercing . | . . . . . Highest Corruption 15 | . . 15 15 15 Average Corruption 14 | . . 14 15 15 Corruption Purged . | . . . . . Corruption Blocked . | . . . . . Effects 53 | . . 28 8 17 Message Errors 17 | . . 6 5 6 Matter Fused 9 | . . 4 1 4 Heat Flow Errors 2 | . . 1 . 1 Energy Discharges 6 | . . 5 . 1 Parts Rejected 2 | . . 2 . . Parts Fused 1 | . . . . 1 Data Loss (minor) 4 | . . 2 1 1 Data Loss (major) 3 | . . 1 1 1 Misfires 1 | . . . . 1 Alerts 2 | . . 1 . 1 Misdirections 3 | . . 3 . . Weapon Failures 3 | . . 3 . . Overload Shots . | . . . . . Overflow Damage . | . . . . . Projectiles . | . . . . . Explosions . | . . . . . Melee . | . . . . . Knockbacks . | . . . . . Impact . | . . . . . Kinetic . | . . . . . Secondary . | . . . . . Self-Inflicted Damage 2 | . . 2 . . Shots . | . . . . . Rammed 1 | . . 1 . . Targets Rammed 1 | . . 1 . . Kicked . | . . . . . Crushed . | . . . . . Highest Temperature 241 | . 63 224 . 241 Average Temperature 50 | . 39 44 . 111 Received Heat Transfer 426 | . 72 354 . . Siege Activations . | . . . . . Robots Corrupted 1 | . . 1 . . Combat Hostiles 1 | . . 1 . . Parts Fried 2 | . . 2 . . Impact Corruptions . | . . . . . Robots Melted . | . . . . . Combat Hostiles . | . . . . . Parts Melted 3 | . . 3 . . Heat Transferred 850 | . 150 700 . . Parts Sabotaged . | . . . . . Parts Stolen . | . . . . . Parts Stripped . | . . . . . Power Chain Reactions 1 | . . 1 . . Alert | -11 -10 -9 -9 -9 ------- Run | Yrd Mat Mat Min Exi Peak Influence 336 | 40 180 336 157 . Initial 97 | . 26 12 97 . Average 122 | 19 88 177 118 . Maximum Alert Level 1 | . . 1 . . Low Security (%) 73 | 100 100 40 100 . Level 1 26 | . . 59 . . Level 2 . | . . . . . Level 3 . | . . . . . Level 4 . | . . . . . Level 5 . | . . . . . High Security . | . . . . . Max Security . | . . . . . Squads Dispatched 4 | . 1 3 . . Investigation 3 | . 1 2 . . Extermination . | . . . . . Reinforcement 1 | . . 1 . . Assault . | . . . . . Garrison . | . . . . . Intercept . | . . . . . Searches Triggered . | . . . . . Construction Impeded . | . . . . . Haulers Reinforced . | . . . . . Active Scanning Responses . | . . . . . Cargo Convoy Interrupts . | . . . . . Stealth | -11 -10 -9 -9 -9 --------- Run | Yrd Mat Mat Min Exi Distress Signals . | . . . . . Communications Jammed . | . . . . . Distress Signals . | . . . . . Times Spotted 47 | . 6 27 . 14 Peak Tracking Total 16 | . 3 5 . 16 Tactical Retreats 6 | . . 5 . 1 Traps | -11 -10 -9 -9 -9 ------- Run | Yrd Mat Mat Min Exi Traps Triggered . | . . . . . Indirectly . | . . . . . Trap Hack Attempts . | . . . . . Triggered . | . . . . . Disarmed . | . . . . . Reprogrammed . | . . . . . Reused . | . . . . . Traps Extracted . | . . . . . Installed . | . . . . . Triggered . | . . . . . Machines | -11 -10 -9 -9 -9 ---------- Run | Yrd Mat Mat Min Exi Machines Disabled 2 | . . . . 2 Max in Single Turn . | . . . . . Machines Repaired . | . . . . . Machines Dismantled . | . . . . . Machines Sabotaged . | . . . . . Overloaded Fab Kills . | . . . . . Hacking | -11 -10 -9 -9 -9 --------- Run | Yrd Mat Mat Min Exi Machines Accessed 11 | . 5 5 . 1 Terminals 7 | . 4 3 . . Fabricators . | . . . . . Repair Stations . | . . . . . Recycling Units 2 | . 1 1 . . Scanalyzers 1 | . . 1 . . Garrison Access . | . . . . . Total Hacks 24 | . 12 11 . 1 Successful 11 | . 5 5 . 1 Failed 13 | . 7 6 . . Catastrophic 1 | . . 1 . . Database Lockouts . | . . . . . Manual 23 | . 13 9 . 1 Terminals 17 | . 10 7 . . Fabricators . | . . . . . Repair Stations . | . . . . . Recycling Units 4 | . 2 2 . . Scanalyzers 2 | . . 2 . . Garrison Access . | . . . . . Terminal Hacks 4 | . 2 1 . 1 Robot Analysis 1 | . 1 . . . Branch Access Points 1 | . . 1 . . Unreport Threat 1 | . 1 . . . Derelict Proto ID Bank 1 | . . . . 1 Fabricator Hacks . | . . . . . Repair Station Hacks . | . . . . . Recycling Unit Hacks . | . . . . . Scanalyzer 2 | . . 2 . . Insert Component 1 | . . 1 . . Analyze 1 | . . 1 . . Garrison Access Hacks . | . . . . . Unauthorized Hacks 5 | . 3 2 . . Terminals 3 | . 2 1 . . Botnet 3 | . 2 1 . . Fabricators . | . . . . . Repair Stations . | . . . . . Recycling Units 2 | . 1 1 . . Tunnel 2 | . 1 1 . . Scanalyzers . | . . . . . Garrison Access . | . . . . . Data Cores Recovered . | . . . . . Used . | . . . . . Hacking Detections 6 | . 4 2 . . Full Trace Events 2 | . . 2 . . Feedback Events . | . . . . . Feedback Blocked . | . . . . . Robot Schematics Acquired . | . . . . . Robots Built . | . . . . . Authchips . | . . . . . Time . | . . . . . Total Robot Build Rating . | . . . . . Part Schematics Acquired 1 | . . 1 . . Parts Built . | . . . . . Authchips . | . . . . . Time . | . . . . . Total Part Build Rating . | . . . . . Parts Repaired . | . . . . . Time . | . . . . . Parts Recycled . | . . . . . Recycled Matter . | . . . . . Retrieved Matter . | . . . . . Retrieved Components . | . . . . . Parts Scanalyzed 1 | . . 1 . . Part Schematics Acquired 1 | . . 1 . . Parts Damaged . | . . . . . Bothacking | -11 -10 -9 -9 -9 ------------ Run | Yrd Mat Mat Min Exi Used RIF Installer . | . . . . . Robots Hacked . | . . . . . Non-combat . | . . . . . Combat . | . . . . . Robot Hacks Applied . | . . . . . Relay Couplers Released . | . . . . . Fabnet Peak Effective % . | . . . . . Robots Rewired . | . . . . . Allies Hacked . | . . . . . Hacks Repelled . | . . . . . Allies | -11 -10 -9 -9 -9 -------- Run | Yrd Mat Mat Min Exi Total Allies 5 | . . . 5 . Largest Group 5 | . . . 5 5 Highest-Rated Group 85 | . . . 85 85 Highest-Rated Ally 31 | . . . 31 31 Total Orders . | . . . . . Ally Attacks 39 | . . . 10 29 Total Damage 346 | . . . 101 245 Kills 5 | . . . 2 3 Allies Corrupted . | . . . . . Allies Melted . | . . . . . Intel | -11 -10 -9 -9 -9 ------- Run | Yrd Mat Mat Min Exi Robot Analysis Total 1 | . 1 . . . Derelict Logs Recovered . | . . . . . Drone Launches . | . . . . . Drone Recoveries . | . . . . . Exploration | -11 -10 -9 -9 -9 ------------- Run | Yrd Mat Mat Min Exi Turns Passed 1654 | 194 318 572 176 394 Spaces Moved 1141 | 104 229 351 138 319 Core 66 | 1 . 65 . . Treads . | . . . . . Legs 626 | . 69 100 138 319 Wheels 449 | 103 160 186 . . Hover . | . . . . . Flight . | . . . . . Fastest Speed 50 | 50 80 80 120 120 Average Speed 105 | 89 98 97 120 120 Slowest Speed 200 | 90 120 200 120 120 Overloaded Moves . | . . . . . Propulsion Burnouts . | . . . . . Robots Hopped . | . . . . . Cave-ins Triggered . | . . . . . Exploration Rate (%) 39 | 5 50 27 38 79 Regions Visited 4 Branch Regions 2 Pre-discovered Areas 2 | . 1 1 . . Known Exits Taken 1 | . . 1 . . Unknown Exits Taken 3 | 1 1 . 1 . Scrap Searched . | . . . . . Spaces Dug . | . . . . . Terrain Destroyed 6 | . . 6 . . Melee . | . . . . . Projectile . | . . . . . AOE 6 | . . 6 . . Terrain Rammed . | . . . . . Walls Destroyed . | . . . . . Machines Disabled . | . . . . . Actions | -11 -10 -9 -9 -9 --------- Run | Yrd Mat Mat Min Exi Total 1408 | 159 287 482 148 332 Wait 66 | . 34 15 11 6 Move 1137 | 103 228 350 137 319 Hop . | . . . . . Pick Up 17 | 7 3 6 . 1 Fast Attach 20 | 5 1 13 . 1 Attach 9 | 1 . 8 . . Detach . | . . . . . Swap 9 | . 4 4 . 1 Drop 10 | . 1 5 . 4 Fire 139 | 43 16 80 . . Melee . | . . . . . Ram 1 | . . 1 . . Kick . | . . . . . Crush . | . . . . . Escape Stasis . | . . . . . Rewire . | . . . . . Trap . | . . . . . Miscellaneous . | . . . . . Route ------- -11/Scrapyard -10/Materials -9/Materials (discovered 2 exits: *Min x2) -9/Mines (discovered 3 exits: [*Mat x2] / *Exi) -9/Exiles History --------- Turn | Location | Event 14 | -11/Scrapyard | Discovered new exit (range 15) 195 | -11/Scrapyard | Entered Materials 306 | -10/Materials | Build established: Mutant 495 | -10/Materials | Discovered new exit (range 8) 513 | -10/Materials | Entered another Materials area 513 | -9/Materials | Evolved 2 slots: Propulsion x2 568 | -9/Materials | System corruption reached 10% 626 | -9/Materials | Lost 9 parts (1p4n1u3w) 784 | -9/Materials | Core integrity fell below 50% 825 | -9/Materials | Lost 3 parts (2n1w) 953 | -9/Materials | Core integrity fell below 20% 1027 | -9/Materials | Identified exit to Mines 1085 | -9/Materials | Entered Mines 1119 | -9/Mines | Assisted by bots powering up and referring to "LRC-V3" 1184 | -9/Mines | Discovered new exit (range 14) 1196 | -9/Mines | Discovered new exit (range 14) 1210 | -9/Mines | Build established: Scavenger-Mutant 1244 | -9/Mines | Deemed a non-threat by the Exiles lab entrance 1244 | -9/Mines | Discovered new exit (range 5) 1261 | -9/Mines | Entered Exiles 1261 | -9/Exiles | Accompanied by 5 allies 1291 | -9/Exiles | Led the pair of lost Derelicts to a safe place 1293 | -9/Exiles | Met 8R-AWN 1313 | -9/Exiles | Met EX-HEX 1351 | -9/Exiles | Met EX-BIN 1366 | -9/Exiles | Aligned with FarCom system 1367 | -9/Exiles | Given EX-Vault access code 1396 | -9/Exiles | Opened EX-Vault 1402 | -9/Exiles | Found AWS/Autocannon 1425 | -9/Exiles | Warned to stay clear of 0b10 Research branches 1458 | -9/Exiles | Met EX-DEC 1548 | -9/Exiles | Visited The Gauntlet 1604 | -9/Exiles | Attacked by the Exiles 1655 | -9/Exiles | Destroyed by as-04669 with Assembled Heavy Rifle Last Messages --------------- 01622_ ZX-C33 heat spikes uncontrollably. 01623_ Sml. Laser destroyed. 01625_ MW>99EZ=KSS :IIQC